[Event "NJSK 2021 Jeugd B"]
[Site "Almelo, Netherlands"]
[Date "2021.08.04"]
[Round "4.6"]
[White "Aarts, Joaquin"]
[Black "Franke, Daniel"]
[Result "1-0"]
[TimeControl "90min/40moves + 30min + 30sec/move"]
[WhiteElo "1736"]
[BlackElo "1554"]

1. d4 {[%clk 01:30:56]} {[%emt 00:00:04]} d5 {[%clk 01:30:55]} {[%emt
00:00:06]} 2. c4 {[%clk 01:31:23]} {[%emt 00:00:04]} c6 {[%clk 01:31:19]}
{[%emt 00:00:06]} 3. Nf3 {[%clk 01:31:48]} {[%emt 00:00:04]} Nf6 {[%clk
01:31:44]} {[%emt 00:00:05]} 4. Nc3 {[%clk 01:32:12]} {[%emt 00:00:07]} e6
{[%clk 01:32:02]} {[%emt 00:00:12]} 5. cxd5 {[%clk 01:32:30]} {[%emt 00:00:11]}
exd5 {[%clk 01:32:24]} {[%emt 00:00:08]} 6. Bg5 {[%clk 01:32:56]} {[%emt
00:00:05]} Be7 {[%clk 01:32:31]} {[%emt 00:00:23]} 7. e3 {[%clk 01:32:19]}
{[%emt 00:01:07]} Bf5 {[%clk 01:32:31]} {[%emt 00:00:30]} 8. Bd3 {[%clk
01:32:03]} {[%emt 00:00:47]} Bxd3 {[%clk 01:32:21]} {[%emt 00:00:39]} 9. Qxd3
{[%clk 01:32:29]} {[%emt 00:00:04]} Nbd7 {[%clk 01:32:16]} {[%emt 00:00:35]} 10.
Qc2 {[%clk 01:32:20]} {[%emt 00:00:39]} O-O {[%clk 01:29:16]} {[%emt 00:03:30]}
11. O-O {[%clk 01:32:46]} {[%emt 00:00:04]} h6 {[%clk 01:29:27]} {[%emt
00:00:19]} 12. Bh4 {[%clk 01:31:04]} {[%emt 00:02:12]} Re8 {[%clk 01:27:56]}
{[%emt 00:02:01]} 13. Rab1 {[%clk 01:30:38]} {[%emt 00:00:56]} Nb6 {[%clk
01:23:44]} {[%emt 00:04:43]} 14. Nd2 {[%clk 01:30:16]} {[%emt 00:00:52]} Rc8
{[%clk 01:03:46]} {[%emt 00:20:28]} 15. b4 {[%clk 01:30:01]} {[%emt 00:00:44]}
Qd7 {[%clk 00:54:25]} {[%emt 00:09:51]} 16. a4 {[%clk 01:21:08]} {[%emt
00:09:23]} Nc4 {[%clk 00:38:03]} {[%emt 00:16:52]} 17. Nxc4 {[%clk 01:19:51]}
{[%emt 00:01:47]} dxc4 {[%clk 00:37:50]} {[%emt 00:00:44]} 18. b5 {[%clk
01:20:02]} {[%emt 00:00:20]} Nd5 {[%clk 00:34:51]} {[%emt 00:03:29]} 19. Bxe7
{[%clk 01:18:25]} {[%emt 00:02:06]} Rxe7 {[%clk 00:34:19]} {[%emt 00:01:02]} 20.
bxc6 {[%clk 01:01:58]} {[%emt 00:16:57]} Qxc6 {[%clk 00:30:16]} {[%emt
00:04:33]} 21. Nxd5 {[%clk 01:01:47]} {[%emt 00:00:42]} Qxd5 {[%clk 00:30:33]}
{[%emt 00:00:13]} 22. Rb5 {[%clk 01:02:04]} {[%emt 00:00:13]} Qd6 {[%clk
00:21:51]} {[%emt 00:09:11]} 23. Rfb1 {[%clk 00:59:03]} {[%emt 00:03:30]} Qg6
{[%clk 00:14:09]} {[%emt 00:08:13]} 24. Qxg6 {[%clk 00:49:45]} {[%emt
00:09:48]} fxg6 {[%clk 00:14:36]} {[%emt 00:00:04]} 25. Rc1 {[%clk 00:46:28]}
{[%emt 00:03:47]} Rec7 {[%clk 00:09:41]} {[%emt 00:05:25]} 26. Rc3 {[%clk
00:45:20]} {[%emt 00:01:39]} b6 {[%clk 00:08:07]} {[%emt 00:02:04]} 27. Rb4
{[%clk 00:44:24]} {[%emt 00:01:25]} Kf7 {[%clk 00:07:27]} {[%emt 00:01:10]} 28.
f3 {[%clk 00:38:17]} {[%emt 00:06:37]} Ke6 {[%clk 00:04:25]} {[%emt 00:03:32]}
29. e4 {[%clk 00:38:23]} {[%emt 00:00:24]} g5 {[%clk 00:04:30]} {[%emt
00:00:25]} 30. h3 {[%clk 00:37:16]} {[%emt 00:01:36]} Kd6 {[%clk 00:04:40]}
{[%emt 00:00:21]} 31. Kf2 {[%clk 00:37:04]} {[%emt 00:00:43]} Rc6 {[%clk
00:03:44]} {[%emt 00:01:27]} 32. Ke3 {[%clk 00:36:50]} {[%emt 00:00:42]} a5
{[%clk 00:02:55]} {[%emt 00:01:19]} 33. Rb5 {[%clk 00:33:13]} {[%emt 00:04:07]}
Rb8 {[%clk 00:02:19]} {[%emt 00:01:07]} 34. e5+ {[%clk 00:31:26]} {[%emt
00:02:16]} Kd7 {[%clk 00:01:50]} {[%emt 00:00:59]} 35. d5 {[%clk 00:30:56]}
{[%emt 00:01:00]} Rc5 {[%clk 00:01:36]} {[%emt 00:00:44]} 36. Rxc5 {[%clk
00:30:08]} {[%emt 00:01:18]} bxc5 {[%clk 00:02:02]} {[%emt 00:00:03]} 37. Rxc4
{[%clk 00:30:32]} {[%emt 00:00:05]} Rb1 {[%clk 00:01:48]} {[%emt 00:00:45]} 38.
Rxc5 {[%clk 00:28:49]} {[%emt 00:02:13]} Re1+ {[%clk 00:02:10]} {[%emt
00:00:09]} 39. Kd4 {[%clk 00:29:06]} {[%emt 00:00:12]} Re2 {[%clk 00:01:41]}
{[%emt 00:01:00]} 40. g4 {[%clk 00:28:32]} {[%emt 00:01:04]} g6 {[%clk
00:00:48]} {[%emt 00:01:23]} 41. Rxa5 {[%clk 00:27:59]} {[%emt 00:01:03]} h5
{[%clk 00:28:19]} {[%emt 00:02:58]} 42. Ra7+ {[%clk 00:55:41]} {[%emt
00:02:48]} Kd8 {[%clk 00:26:26]} {[%emt 00:02:23]} 43. e6 {[%clk 00:55:16]}
{[%emt 00:00:55]} h4 {[%clk 00:25:57]} {[%emt 00:00:59]} 44. e7+ {[%clk
00:55:13]} {[%emt 00:00:33]} Ke8 {[%clk 00:25:53]} {[%emt 00:00:34]} 45. d6
{[%clk 00:55:32]} {[%emt 00:00:11]} Rd2+ {[%clk 00:19:58]} {[%emt 00:06:25]} 46.
Ke5 {[%clk 00:54:52]} {[%emt 00:01:10]} Re2+ {[%clk 00:19:27]} {[%emt
00:01:01]} 47. Kd5 {[%clk 00:51:06]} {[%emt 00:04:16]} Rd2+ {[%clk 00:19:51]}
{[%emt 00:00:06]} 48. Kc5 {[%clk 00:51:28]} {[%emt 00:00:08]} Rc2+ {[%clk
00:19:52]} {[%emt 00:00:30]} 49. Kb4 {[%clk 00:49:46]} {[%emt 00:02:11]} Rb2+
{[%clk 00:20:17]} {[%emt 00:00:06]} 50. Ka3 {[%clk 00:50:04]} {[%emt 00:00:12]}
Rb8 {[%clk 00:20:38]} {[%emt 00:00:08]} 51. a5 {[%clk 00:50:01]} {[%emt
00:00:32]} Rc8 {[%clk 00:21:04]} {[%emt 00:00:05]} 52. d7+ {[%clk 00:50:09]}
{[%emt 00:00:21]} 1-0

[Event "NJSK 2021 Jeugd B"]
[Site "Almelo, Netherlands"]
[Date "2021.08.04"]
[Round "4.7"]
[White "Wierenga, Jael"]
[Black "Groen, Jari"]
[Result "0-1"]
[TimeControl "90min/40moves + 30min + 30sec/move"]
[WhiteElo "1565"]
[BlackElo "1423"]

1. d4 {[%clk 01:30:57]} {[%emt 00:00:02]} f5 {[%clk 01:30:52]} {[%emt
00:00:08]} 2. Bf4 {[%clk 01:31:20]} {[%emt 00:00:08]} Nf6 {[%clk 01:30:35]}
{[%emt 00:00:47]} 3. e3 {[%clk 01:31:35]} {[%emt 00:00:15]} e6 {[%clk
01:30:36]} {[%emt 00:00:29]} 4. Nf3 {[%clk 01:31:55]} {[%emt 00:00:09]} b6
{[%clk 01:30:20]} {[%emt 00:00:47]} 5. Be2 {[%clk 01:30:19]} {[%emt 00:02:06]}
Bb7 {[%clk 01:29:47]} {[%emt 00:01:03]} 6. h3 {[%clk 01:30:21]} {[%emt
00:00:28]} Bd6 {[%clk 01:28:05]} {[%emt 00:02:13]} 7. Ne5 {[%clk 01:29:29]}
{[%emt 00:01:22]} O-O {[%clk 01:17:48]} {[%emt 00:10:47]} 8. Rg1 {[%clk
01:27:09]} {[%emt 00:02:50]} Nc6 {[%clk 01:13:57]} {[%emt 00:04:22]} 9. Bf3
{[%clk 01:24:23]} {[%emt 00:03:15]} Ne4 {[%clk 01:10:09]} {[%emt 00:04:18]} 10.
Nd2 {[%clk 01:02:44]} {[%emt 00:22:09]} Ne7 {[%clk 00:57:48]} {[%emt 00:12:52]}
11. Ndc4 {[%clk 00:53:05]} {[%emt 00:10:08]} Bxe5 {[%clk 00:49:10]} {[%emt
00:09:08]} 12. Nxe5 {[%clk 00:48:37]} {[%emt 00:04:58]} d6 {[%clk 00:48:31]}
{[%emt 00:01:09]} 13. Nd3 {[%clk 00:47:10]} {[%emt 00:01:57]} c5 {[%clk
00:42:35]} {[%emt 00:06:27]} 14. c3 {[%clk 00:36:02]} {[%emt 00:11:38]} c4
{[%clk 00:35:11]} {[%emt 00:07:54]} 15. Nc1 {[%clk 00:30:29]} {[%emt 00:06:03]}
Qc7 {[%clk 00:32:33]} {[%emt 00:03:08]} 16. Ne2 {[%clk 00:25:03]} {[%emt
00:05:56]} e5 {[%clk 00:30:56]} {[%emt 00:02:08]} 17. Bh2 {[%clk 00:24:27]}
{[%emt 00:01:05]} Rad8 {[%clk 00:25:42]} {[%emt 00:05:44]} 18. Qc2 {[%clk
00:24:17]} {[%emt 00:00:41]} Ng6 {[%clk 00:24:28]} {[%emt 00:01:45]} 19. g4
{[%clk 00:19:52]} {[%emt 00:04:54]} Nxf2 {[%clk 00:19:01]} {[%emt 00:05:57]} 20.
Bxb7 {[%clk 00:14:38]} {[%emt 00:05:44]} Nd3+ {[%clk 00:18:20]} {[%emt
00:01:11]} 21. Kd2 {[%clk 00:15:07]} {[%emt 00:00:02]} Qxb7 {[%clk 00:18:18]}
{[%emt 00:00:32]} 22. b3 {[%clk 00:13:39]} {[%emt 00:01:58]} b5 {[%clk
00:12:55]} {[%emt 00:05:52]} 23. bxc4 {[%clk 00:10:47]} {[%emt 00:03:24]} bxc4
{[%clk 00:13:11]} {[%emt 00:00:13]} 24. Qa4 {[%clk 00:10:15]} {[%emt 00:01:01]}
Qb2+ {[%clk 00:12:23]} {[%emt 00:01:20]} 25. Qc2 {[%clk 00:10:43]} {[%emt
00:00:01]} Qxc2+ {[%clk 00:12:16]} {[%emt 00:00:37]} 26. Kxc2 {[%clk 00:11:12]}
{[%emt 00:00:02]} fxg4 {[%clk 00:12:00]} {[%emt 00:00:45]} 27. Kd2 {[%clk
00:10:32]} {[%emt 00:01:09]} Nh4 {[%clk 00:11:43]} {[%emt 00:00:47]} 28. Kd1
{[%clk 00:07:16]} {[%emt 00:03:45]} Nf3 {[%clk 00:11:36]} {[%emt 00:00:38]} 29.
Rh1 {[%clk 00:05:26]} {[%emt 00:02:20]} Nxh2 {[%clk 00:11:29]} {[%emt
00:00:37]} 30. Rxh2 {[%clk 00:04:53]} {[%emt 00:01:02]} Rf1+ {[%clk 00:11:49]}
{[%emt 00:00:12]} 0-1

[Event "NJSK 2021 Jeugd B"]
[Site "Almelo, Netherlands"]
[Date "2021.08.04"]
[Round "4.8"]
[White "Arnold, Lorin"]
[Black "Goudriaan, Rafael"]
[Result "1/2-1/2"]
[TimeControl "90min/40moves + 30min + 30sec/move"]
[WhiteElo "1651"]
[BlackElo "1677"]

1. e4 {[%clk 01:30:39]} {[%emt 00:00:19]} d6 {[%clk 01:30:50]} {[%emt
00:00:11]} 2. Nc3 {[%clk 01:30:51]} {[%emt 00:00:18]} e5 {[%clk 01:31:00]}
{[%emt 00:00:20]} 3. f4 {[%clk 01:31:15]} {[%emt 00:00:07]} Nd7 {[%clk
01:29:27]} {[%emt 00:02:02]} 4. Nf3 {[%clk 01:31:19]} {[%emt 00:00:25]} Be7
{[%clk 01:27:31]} {[%emt 00:02:25]} 5. Bc4 {[%clk 01:30:07]} {[%emt 00:01:43]}
c6 {[%clk 01:27:08]} {[%emt 00:00:53]} 6. O-O {[%clk 01:29:39]} {[%emt
00:00:59]} Ngf6 {[%clk 01:26:34]} {[%emt 00:01:03]} 7. fxe5 {[%clk 01:16:52]}
{[%emt 00:13:18]} dxe5 {[%clk 01:26:01]} {[%emt 00:01:03]} 8. d3 {[%clk
01:13:22]} {[%emt 00:04:00]} Bc5+ {[%clk 01:23:53]} {[%emt 00:02:37]} 9. Kh1
{[%clk 01:13:19]} {[%emt 00:00:33]} O-O {[%clk 01:22:07]} {[%emt 00:02:16]} 10.
Bg5 {[%clk 01:13:10]} {[%emt 00:00:40]} Qc7 {[%clk 01:21:50]} {[%emt 00:00:44]}
11. Qe1 {[%clk 01:04:55]} {[%emt 00:08:48]} h6 {[%clk 01:15:25]} {[%emt
00:06:53]} 12. Bd2 {[%clk 00:51:53]} {[%emt 00:13:35]} Nh5 {[%clk 01:09:12]}
{[%emt 00:06:41]} 13. Ne2 {[%clk 00:40:36]} {[%emt 00:11:48]} Ndf6 {[%clk
01:01:23]} {[%emt 00:08:17]} 14. Nh4 {[%clk 00:36:38]} {[%emt 00:04:30]} Ng4
{[%clk 00:57:03]} {[%emt 00:04:50]} 15. Ng3 {[%clk 00:35:31]} {[%emt 00:01:38]}
Nf4 {[%clk 00:52:43]} {[%emt 00:04:49]} 16. Ngf5 {[%clk 00:33:13]} {[%emt
00:02:49]} Bxf5 {[%clk 00:46:25]} {[%emt 00:06:48]} 17. Nxf5 {[%clk 00:33:02]}
{[%emt 00:00:41]} g6 {[%clk 00:46:21]} {[%emt 00:00:35]} 18. Nh4 {[%clk
00:31:04]} {[%emt 00:02:28]} Kh7 {[%clk 00:44:06]} {[%emt 00:02:45]} 19. Qg3
{[%clk 00:30:45]} {[%emt 00:00:49]} h5 {[%clk 00:43:25]} {[%emt 00:01:03]} 20.
Rae1 {[%clk 00:29:22]} {[%emt 00:02:00]} Qb6 {[%clk 00:38:05]} {[%emt
00:05:50]} 21. Bxf4 {[%clk 00:26:22]} {[%emt 00:03:30]} exf4 {[%clk 00:36:49]}
{[%emt 00:01:46]} 22. Qxf4 {[%clk 00:26:27]} {[%emt 00:00:25]} Nf2+ {[%clk
00:36:36]} {[%emt 00:00:41]} 23. Rxf2 {[%clk 00:26:52]} {[%emt 00:00:07]} Bxf2
{[%clk 00:36:56]} {[%emt 00:00:11]} 24. Nf5 {[%clk 00:27:02]} {[%emt 00:00:20]}
gxf5 {[%clk 00:34:57]} {[%emt 00:02:28]} 1/2-1/2

[Event "NJSK 2021 Jeugd B"]
[Site "Almelo, Netherlands"]
[Date "2021.08.05"]
[Round "5.1"]
[White "Boghossian, Wahe"]
[Black "Slagboom, Leandro"]
[Result "0-1"]
[TimeControl "90min/40moves + 30min + 30sec/move"]
[WhiteElo "1915"]
[BlackElo "1996"]

1. e4 {[%clk 01:30:58]} {[%emt 00:00:02]} c5 {[%clk 01:30:55]} {[%emt
00:00:06]} 2. Nf3 {[%clk 01:31:24]} {[%emt 00:00:03]} d6 {[%emt 00:02:21]} 3.
d4 {[%clk 01:29:18]} {[%emt 00:00:21]} cxd4 {[%clk 01:31:40]} {[%emt 00:00:09]}
4. Nxd4 {[%clk 01:28:56]} {[%emt 00:00:53]} Nf6 {[%clk 01:32:04]} {[%emt
00:00:06]} 5. Nc3 {[%clk 01:29:21]} {[%emt 00:00:06]} a6 {[%clk 01:32:29]}
{[%emt 00:00:03]} 6. Bc4 {[%clk 01:29:45]} {[%emt 00:00:06]} e6 {[%clk
01:32:38]} {[%emt 00:00:22]} 7. O-O {[%clk 01:29:46]} {[%emt 00:00:28]} b5
{[%clk 01:32:37]} {[%emt 00:00:31]} 8. Bd3 {[%clk 01:02:48]} {[%emt 00:27:28]}
Bb7 {[%clk 01:28:15]} {[%emt 00:04:52]} 9. a3 {[%clk 01:01:33]} {[%emt
00:01:45]} Be7 {[%clk 01:27:45]} {[%emt 00:01:00]} 10. Be3 {[%clk 01:00:40]}
{[%emt 00:01:22]} O-O {[%clk 01:26:44]} {[%emt 00:01:32]} 11. g4 {[%clk
00:57:29]} {[%emt 00:03:41]} Nc6 {[%clk 01:14:56]} {[%emt 00:12:18]} 12. f4
{[%clk 00:46:04]} {[%emt 00:11:55]} Nxd4 {[%clk 01:01:00]} {[%emt 00:14:26]} 13.
Bxd4 {[%clk 00:46:10]} {[%emt 00:00:24]} Nd7 {[%clk 00:49:29]} {[%emt
00:12:02]} 14. Qe1 {[%clk 00:37:43]} {[%emt 00:08:56]} e5 {[%clk 00:46:00]}
{[%emt 00:03:58]} 15. Be3 {[%clk 00:35:56]} {[%emt 00:02:17]} exf4 {[%clk
00:44:26]} {[%emt 00:02:05]} 16. Bxf4 {[%clk 00:33:54]} {[%emt 00:02:32]} Ne5
{[%clk 00:36:33]} {[%emt 00:08:23]} 17. Qe2 {[%clk 00:26:42]} {[%emt 00:07:41]}
Qd7 {[%clk 00:27:19]} {[%emt 00:09:45]} 18. h3 {[%clk 00:22:45]} {[%emt
00:04:26]} Rfe8 {[%clk 00:26:26]} {[%emt 00:01:24]} 19. Rad1 {[%clk 00:20:36]}
{[%emt 00:02:39]} Ng6 {[%clk 00:25:01]} {[%emt 00:01:55]} 20. Bg3 {[%clk
00:12:01]} {[%emt 00:09:05]} Bf6 {[%clk 00:24:29]} {[%emt 00:01:02]} 21. Nxb5
{[%clk 00:08:10]} {[%emt 00:04:21]} axb5 {[%clk 00:23:07]} {[%emt 00:01:52]} 22.
Bxb5 {[%clk 00:08:35]} {[%emt 00:00:06]} Bc6 {[%clk 00:19:48]} {[%emt
00:03:48]} 23. Rxd6 {[%clk 00:02:47]} {[%emt 00:06:19]} Bxb5 {[%clk 00:19:48]}
{[%emt 00:00:30]} 24. Rxd7 {[%clk 00:02:12]} {[%emt 00:01:04]} Bxe2 {[%clk
00:19:50]} {[%emt 00:00:29]} 25. Rf2 {[%clk 00:02:01]} {[%emt 00:00:40]} Rxe4
{[%clk 00:18:35]} {[%emt 00:01:45]} 26. c3 {[%emt 00:00:15]} Rd8 {[%clk
00:17:59]} {[%emt 00:01:04]} 27. Rxd8+ {[%clk 00:01:47]} {[%emt 00:01:02]} Bxd8
{[%clk 00:18:27]} {[%emt 00:00:01]} 28. Rf5 {[%clk 00:02:10]} {[%emt 00:00:06]}
f6 {[%clk 00:17:23]} {[%emt 00:01:35]} 29. Rd5 {[%clk 00:01:58]} {[%emt
00:00:41]} Bb6+ {[%clk 00:17:13]} {[%emt 00:00:41]} 30. Kh2 {[%clk 00:01:51]}
{[%emt 00:00:37]} Bc4 {[%clk 00:16:59]} {[%emt 00:00:44]} 0-1

[Event "NJSK 2021 Jeugd B"]
[Site "Almelo, Netherlands"]
[Date "2021.08.05"]
[Round "5.2"]
[White "Pham, Khoi"]
[Black "Yeh, Timo"]
[Result "1-0"]
[TimeControl "90min/40moves + 30min + 30sec/move"]
[WhiteElo "2128"]
[BlackElo "1819"]

1. d4 {[%clk 01:30:53]} {[%emt 00:00:07]} d5 {[%clk 01:30:57]} {[%emt
00:00:03]} 2. c4 {[%clk 01:31:18]} {[%emt 00:00:05]} e6 {[%clk 01:31:24]}
{[%emt 00:00:03]} 3. Nc3 {[%clk 01:31:41]} {[%emt 00:00:07]} Nf6 {[%clk
01:31:51]} {[%emt 00:00:03]} 4. cxd5 {[%clk 01:32:04]} {[%emt 00:00:08]} exd5
{[%clk 01:32:18]} {[%emt 00:00:03]} 5. Bg5 {[%clk 01:32:21]} {[%emt 00:00:12]}
c6 {[%clk 01:32:39]} {[%emt 00:00:09]} 6. e3 {[%clk 01:32:41]} {[%emt
00:00:10]} Bd6 {[%clk 01:33:05]} {[%emt 00:00:05]} 7. Bd3 {[%clk 01:32:29]}
{[%emt 00:00:41]} O-O {[%clk 01:33:13]} {[%emt 00:00:22]} 8. Nge2 {[%clk
01:32:14]} {[%emt 00:00:45]} Be6 {[%clk 01:32:55]} {[%emt 00:00:49]} 9. Qc2
{[%clk 01:32:21]} {[%emt 00:00:22]} h6 {[%clk 01:33:01]} {[%emt 00:00:24]} 10.
Bh4 {[%clk 01:32:09]} {[%emt 00:00:42]} Re8 {[%clk 01:33:01]} {[%emt 00:00:31]}
11. h3 {[%clk 01:30:37]} {[%emt 00:02:02]} Nbd7 {[%clk 01:32:58]} {[%emt
00:00:33]} 12. O-O {[%clk 01:29:04]} {[%emt 00:02:03]} Qc7 {[%clk 01:33:14]}
{[%emt 00:00:14]} 13. f4 {[%clk 01:25:15]} {[%emt 00:04:19]} Nf8 {[%clk
00:36:36]} {[%emt 00:57:08]} 14. Bxf6 {[%clk 01:23:13]} {[%emt 00:02:31]} gxf6
{[%clk 00:36:46]} {[%emt 00:00:20]} 15. Ng3 {[%clk 01:22:01]} {[%emt 00:01:43]}
Bd7 {[%clk 00:30:50]} {[%emt 00:06:25]} 16. Qf2 {[%clk 01:18:10]} {[%emt
00:04:21]} Ne6 {[%clk 00:26:47]} {[%emt 00:04:34]} 17. Nf5 {[%clk 01:16:22]}
{[%emt 00:02:17]} Ng7 {[%clk 00:24:49]} {[%emt 00:02:28]} 18. Nxh6+ {[%clk
01:16:07]} {[%emt 00:00:45]} Kf8 {[%clk 00:25:18]} {[%emt 00:00:01]} 19. Rae1
{[%clk 01:11:43]} {[%emt 00:04:54]} f5 {[%clk 00:23:56]} {[%emt 00:01:53]} 20.
g4 {[%clk 01:05:26]} {[%emt 00:06:46]} Qc8 {[%clk 00:23:41]} {[%emt 00:00:46]}
21. g5 {[%clk 01:04:21]} {[%emt 00:01:34]} Bb4 {[%clk 00:20:49]} {[%emt
00:03:22]} 22. Qh4 {[%clk 01:02:52]} {[%emt 00:01:58]} Bxc3 {[%clk 00:21:01]}
{[%emt 00:00:19]} 23. bxc3 {[%clk 01:03:17]} {[%emt 00:00:06]} Qd8 {[%clk
00:17:09]} {[%emt 00:04:21]} 24. Bxf5 {[%clk 01:01:40]} {[%emt 00:02:06]} Bxf5
{[%clk 00:15:06]} {[%emt 00:02:33]} 25. Nxf5 {[%clk 01:02:04]} {[%emt
00:00:06]} Nxf5 {[%clk 00:15:34]} {[%emt 00:00:02]} 26. Qh8+ {[%clk 01:02:28]}
{[%emt 00:00:06]} Ke7 {[%clk 00:15:56]} {[%emt 00:00:08]} 27. Qf6+ {[%clk
01:02:54]} {[%emt 00:00:04]} Kd7 {[%clk 00:16:08]} {[%emt 00:00:18]} 28. Qxf5+
{[%clk 01:03:16]} {[%emt 00:00:08]} Kc7 {[%clk 00:16:26]} {[%emt 00:00:12]} 29.
Qxf7+ {[%clk 01:03:32]} {[%emt 00:00:13]} Re7 {[%clk 00:16:53]} {[%emt
00:00:04]} 30. Qf6 {[%clk 01:03:18]} {[%emt 00:00:44]} Qd7 {[%clk 00:16:27]}
{[%emt 00:00:56]} 31. f5 {[%clk 01:02:33]} {[%emt 00:01:15]} Rae8 {[%clk
00:15:54]} {[%emt 00:01:03]} 32. Rf3 {[%clk 01:00:54]} {[%emt 00:02:09]} Rf7
{[%clk 00:09:24]} {[%emt 00:07:00]} 33. Qg6 {[%clk 01:01:18]} {[%emt 00:00:05]}
Rh7 {[%clk 00:08:05]} {[%emt 00:01:50]} 34. Kg2 {[%clk 01:00:04]} {[%emt
00:01:44]} Rg7 {[%clk 00:06:16]} {[%emt 00:02:20]} 35. Qh5 {[%clk 01:00:25]}
{[%emt 00:00:09]} Qd8 {[%clk 00:05:47]} {[%emt 00:00:58]} 36. f6 {[%clk
00:59:01]} {[%emt 00:01:54]} Rxg5+ {[%clk 00:04:24]} {[%emt 00:01:53]} 37. Qxg5
{[%clk 00:59:24]} {[%emt 00:00:07]} Rg8 {[%clk 00:04:54]} 38. h4 {[%clk
00:59:26]} {[%emt 00:00:28]} Rxg5+ {[%clk 00:05:21]} {[%emt 00:00:03]} 39. hxg5
{[%clk 00:59:50]} {[%emt 00:00:06]} Qd7 {[%clk 00:05:27]} {[%emt 00:00:23]} 40.
f7 {[%clk 00:59:55]} {[%emt 00:00:25]} Qg4+ {[%clk 00:05:26]} {[%emt 00:00:32]}
41. Kf2 {[%clk 01:00:17]} {[%emt 00:00:08]} Qh4+ {[%clk 00:05:25]} {[%emt
00:00:31]} 42. Ke2 {[%clk 01:00:19]} {[%emt 00:00:28]} Qh2+ {[%clk 00:05:26]}
{[%emt 00:00:29]} 43. Rf2 {[%clk 00:59:33]} {[%emt 00:01:16]} Qh7 {[%clk
00:05:29]} {[%emt 00:00:27]} 44. f8=Q {[%clk 00:59:48]} {[%emt 00:00:15]} Qc2+
{[%clk 00:05:54]} {[%emt 00:00:06]} 45. Kf1 {[%clk 01:00:08]} {[%emt 00:00:09]}
1-0

[Event "NJSK 2021 Jeugd B"]
[Site "Almelo, Netherlands"]
[Date "2021.08.05"]
[Round "5.3"]
[White "Kien, Clovis"]
[Black "Achuthan, Dylan"]
[Result "1-0"]
[TimeControl "90min/40moves + 30min + 30sec/move"]
[WhiteElo "1683"]
[BlackElo "1888"]

1. d4 {[%clk 01:30:56]} {[%emt 00:00:05]} f5 {[%clk 01:30:47]} {[%emt
00:00:12]} 2. Nf3 {[%clk 01:30:14]} {[%emt 00:01:12]} Nf6 {[%clk 01:31:09]}
{[%emt 00:00:09]} 3. c4 {[%clk 01:28:54]} {[%emt 00:01:50]} d6 {[%clk
01:31:17]} {[%emt 00:00:21]} 4. Nc3 {[%clk 01:27:02]} {[%emt 00:02:22]} g6
{[%clk 01:31:24]} {[%emt 00:00:23]} 5. e3 {[%clk 01:23:50]} {[%emt 00:03:43]}
Bg7 {[%clk 01:31:35]} {[%emt 00:00:18]} 6. Bd3 {[%clk 01:24:00]} {[%emt
00:00:21]} O-O {[%clk 01:31:42]} {[%emt 00:00:22]} 7. O-O {[%clk 01:24:10]}
{[%emt 00:00:20]} Qe8 {[%clk 01:31:38]} {[%emt 00:00:34]} 8. e4 {[%clk
01:21:21]} {[%emt 00:03:20]} e5 {[%clk 01:24:12]} {[%emt 00:07:55]} 9. dxe5
{[%clk 01:12:17]} {[%emt 00:09:35]} dxe5 {[%clk 01:23:52]} {[%emt 00:00:50]} 10.
c5 {[%clk 00:59:38]} {[%emt 00:13:09]} h6 {[%clk 01:02:43]} {[%emt 00:21:39]}
11. Nd5 {[%clk 00:46:43]} {[%emt 00:13:24]} Nxd5 {[%clk 00:46:46]} {[%emt
00:16:27]} 12. Bc4 {[%clk 00:46:32]} {[%emt 00:00:41]} f4 {[%clk 00:30:36]}
{[%emt 00:16:40]} 13. exd5 {[%clk 00:34:22]} {[%emt 00:12:40]} Kh8 {[%clk
00:27:20]} {[%emt 00:03:46]} 14. Re1 {[%clk 00:31:43]} {[%emt 00:03:09]} Nd7
{[%clk 00:20:26]} {[%emt 00:07:25]} 15. b4 {[%clk 00:30:38]} {[%emt 00:01:35]}
g5 {[%clk 00:11:31]} {[%emt 00:09:25]} 16. Bb2 {[%emt 00:09:51]} g4 {[%clk
00:09:21]} {[%emt 00:02:38]} 17. Nd4 {[%clk 00:18:57]} {[%emt 00:02:51]} Nb8
{[%clk 00:04:41]} {[%emt 00:05:10]} 18. Ne6 {[%clk 00:11:50]} {[%emt 00:07:37]}
Bxe6 {[%clk 00:04:16]} {[%emt 00:00:55]} 19. Bxe5 {[%clk 00:10:11]} {[%emt
00:02:09]} Qg6 {[%clk 00:02:24]} {[%emt 00:02:22]} 20. Bxg7+ {[%clk 00:08:40]}
{[%emt 00:02:01]} Qxg7 {[%clk 00:02:53]} {[%emt 00:00:01]} 21. Rxe6 {[%clk
00:08:54]} {[%emt 00:00:16]} g3 {[%clk 00:02:27]} {[%emt 00:00:56]} 22. hxg3
{[%clk 00:06:06]} {[%emt 00:03:18]} fxg3 {[%clk 00:02:46]} {[%emt 00:00:11]} 23.
fxg3 {[%clk 00:06:07]} {[%emt 00:00:29]} a5 {[%clk 00:02:31]} {[%emt 00:00:45]}
24. Rb1 {[%clk 00:05:35]} {[%emt 00:01:03]} Nd7 {[%clk 00:02:01]} {[%emt
00:01:00]} 25. Qd2 {[%clk 00:04:39]} {[%emt 00:01:25]} Nf6 {[%clk 00:01:33]}
{[%emt 00:00:57]} 26. Rbe1 {[%clk 00:05:05]} {[%emt 00:00:04]} Ng4 {[%clk
00:01:03]} {[%emt 00:01:01]} 27. Re7 {[%clk 00:04:27]} {[%emt 00:01:08]} Qf6
{[%clk 00:00:47]} {[%emt 00:00:46]} 28. Rxc7 {[%clk 00:03:10]} {[%emt
00:01:47]} Rae8 {[%clk 00:00:37]} {[%emt 00:00:41]} 29. Rf1 {[%clk 00:02:10]}
{[%emt 00:01:29]} Qe5 {[%clk 00:00:49]} {[%emt 00:00:18]} 30. d6 {[%clk
00:01:55]} {[%emt 00:00:46]} Rxf1+ {[%clk 00:00:31]} {[%emt 00:00:48]} 31. Bxf1
{[%clk 00:02:12]} {[%emt 00:00:12]} Rf8 {[%clk 00:00:40]} {[%emt 00:00:21]} 32.
Re7 {[%clk 00:02:26]} {[%emt 00:00:16]} Qf6 {[%clk 00:00:33]} {[%emt 00:00:37]}
33. Re1 {[%clk 00:02:36]} {[%emt 00:00:21]} axb4 {[%clk 00:00:34]} {[%emt
00:00:28]} 34. Bb5 {[%clk 00:02:34]} {[%emt 00:00:32]} Qf5 {[%clk 00:00:33]}
{[%emt 00:00:32]} 35. Qd4+ {[%clk 00:02:52]} {[%emt 00:00:11]} Nf6 {[%clk
00:00:34]} {[%emt 00:00:29]} 36. d7 {[%clk 00:02:56]} {[%emt 00:00:27]} Rd8
{[%clk 00:30:00]} {[%emt 00:00:33]} 1-0